[Event "Czech Open-GM 2022"]
[Site "Pardubice"]
[Date "2022.07.24"]
[Round "3.30"]
[White "Roessler, Ulrike"]
[Black "Slovak, Kilian"]
[Result "0-1"]
[ECO "B78"]
[WhiteElo "2129"]
[BlackElo "2321"]
[Annotator "TA"]
[PlyCount "96"]
[EventDate "2022.07.22"]
[EventType "swiss"]
[EventCountry "CZE"]
[SourceTitle "playchess.com"]
[Source "ChessBase"]
[SourceQuality "1"]
[TimeControl "40/5400+30:1800+30"]

{[%evp 20,96,39,33,31,0,54,0,0,0,0,0,0,0,0,-27,-38,-45,4,-177,-167,-176,-166,-160,-164,-129,-100,-107,-94,-224,-210,-295,-283,-324,-318,-382,-343,-360,-367,-360,-329,-461,-403,-612,-594,-599,-580,-680,-674,-738,-736,-741,-738,-769,-742,-863,-775,-738,-634,-772,-764,-745,-744,-785,-692,-835,-752,-1172,-1154,-1186,-1189,-1176,-1165,-1165,-915,-29980,-29981,-29993,-29994]} 1. e4 c5 2. Nf3 d6 3. d4 cxd4 4. Nxd4 Nf6 5. Nc3 g6 6. Be3 Bg7 7. f3 O-O 8. Qd2 Nc6 9. Bc4 Bd7 10. O-O-O Rb8 11. h4 {[%emt 0:10:54][%cal Oh4h5]} b5 {[%emt 0:02:11] B78: Sicilian Dragon: Yugoslav Attack, 9 Bc4 Bd7 10 0-0-0 Rc8.} 12. Be2 {[%emt 0:03:06]} (12. Bxb5 Nxd4 13. Bxd7 Nxf3 14. gxf3 Qxd7 $11) 12... Ne5 {[%emt 0:06:39]} (12... b4 $11 13. Nd5 Nxd5 14. exd5 b3 15. axb3 (15. Nxc6 $2 bxa2 16. Qd3 Bxc6 $19) 15... Nb4) 13. Ndxb5 {[%emt 0:05:34]} ({Worse is} 13. Bxb5 Bxb5 14. Ndxb5 Qa5 $17) (13. Bh6 $14) 13... Qa5 $1 $11 {[%emt 0:00:18][%cal Rd7b5] The position is equal.} 14. Nd4 {[%emt 0:03:54][%cal Oh4h5]} Rfc8 {[%emt 0:00:18]} 15. Nb3 {[%emt 0:01:43]} Rxb3 {[%emt 0:05:56]} 16. cxb3 {[%emt 0:03:42] Threatens to win with Kb1.} (16. axb3 $2 {[#] is the wrong capture.} Nxe4 $1 {[%mdl 512]} 17. fxe4 Qa1+ 18. Nb1 Nc4 $1 $19 {[%mdl 512]}) 16... Qxa2 {[%emt 0:02:58]} 17. Qc2 {[%emt 0:01:13]} (17. Bc4 $5 {[%cal Rc3a2]} Qa5 18. Kb1 $11) 17... Qa5 {[%emt 0:03:05]} 18. Kb1 {[%emt 0:03:25] [#]} Be6 $146 {[%emt 0:06:22]} (18... Nc6 $1 $15 19. Rc1 Nb4) ({Predecessor:} 18... Nc6 19. Nd5 Nb4 20. Nxb4 Rxc2 21. Nxc2 Bb5 22. b4 Qa6 23. Bxb5 Qxb5 24. Bxa7 Qe2 {0-1 (46) Obregon,C (2517)-Flores,D (2590) Villa Martelli 2016}) 19. Rc1 $2 {[%emt 0:04:46]} (19. b4 $11 {and White has nothing to worry.} Qxb4 20. Qa4 Qxa4 21. Nxa4) 19... Rb8 $19 {[%emt 0:13:15]} 20. Bd1 {[%emt 0:13:20]} Bxb3 {[%emt 0:06:03]} 21. Qxb3 {[%emt 0:02:45]} Rxb3 {[%emt 0:00:09]} 22. Bxb3 {[%emt 0:00:04]} Nd3 {[%emt 0:08:42][%cal Be5d3,Bd3b4,Bb4c6][%mdl 32]} 23. Rc2 {[%emt 0:05:40]} Qb4 {[%emt 0:02:40]} 24. Ka2 {[%emt 0:02:56]} (24. Rd1 $17) 24... Nd7 {[%emt 0:02:20]} 25. Na4 {[%emt 0:05:09]} (25. Nd5 $142 Qb5 26. Ra1 (26. Rc8+ $2 Bf8 $19)) 25... h5 {[%emt 0:16:09]} 26. Rd1 {[%emt 0:06:12]} Qb5 {[%emt 0:01:22] Strongly threatening ...Nb4+. Really sharp!} 27. Rc4 {[%emt 0:10:18]} Nb4+ {[%emt 0:01:03] Pair of Knights!} 28. Kb1 {[%emt 0:00:10]} Nc6 {[%emt 0:00:24]} 29. Ba2 {[%emt 0:03:04]} Na5 {[%emt 0:01:50]} 30. Rc8+ {[%emt 0:00:47]} (30. Rd5 $142 Nc5 31. Nc3) 30... Nf8 {[%emt 0:02:08]} 31. Rd2 {[%emt 0:12:12]} (31. Nc3 $142 Qb7 32. Rxf8+ Kxf8 33. Rc1) 31... Qxa4 {[%emt 0:00:37]} 32. Bg5 {[%emt 0:00:27]} Nb3 {[%emt 0:09:05]} 33. Bxb3 {[%emt 0:01:48]} Qxb3 {[%emt 0:00:01]} 34. Rdc2 {[%emt 0:01:03]} f6 {[%emt 0:04:35]} 35. Bc1 {[%emt 0:00:13]} Kf7 {[%emt 0:00:05]} 36. R8c7 {[%emt 0:00:20]} Qb6 {[%emt 0:00:42]} 37. R2c6 {[%emt 0:00:28]} Qb5 {[%emt 0:02:09] aiming for ...Ne6.} 38. Rxd6 {[%emt 0:00:49]} Qb8 {[%emt 0:03:01]} 39. Rdc6 {[%emt 0:00:40]} Ne6 {[%emt 0:00:07]} 40. Rc8 {[%emt 0:02:28]} Qb5 {[%emt 0:00:35]} 41. Rc4 {[%emt 0:01:59]} a5 {[%emt 0:00:37][%cal Ba7a5,Ba5a4][%mdl 32] ...f5 is the strong threat.} 42. Ka2 {[%emt 0:03:21]} a4 {[%emt 0:01:13]} 43. Bd2 {[%emt 0:01:59]} Qb3+ {[%emt 0:00:19]} 44. Ka1 {[%emt 0:00:45]} Qd1+ {[%emt 0:00:20]} 45. Bc1 {[%emt 0:00:18]} f5 {[%emt 0:02:04]} 46. exf5 {[%emt 0:03:10]} gxf5 {[%emt 0:00:04] White must now prevent ...Nd4.} 47. Ra8 {[%emt 0:01:33]} Nd4 {[%emt 0:00:07]} 48. Rac8 {[%emt 0:02:22]} Nb3+ {[%emt 0:00:19] Weighted Error Value: White=0.58/Black=0.15 (very precise)} 0-1

[Event "Czech Open-GM 2022"]
[Site "Pardubice"]
[Date "2022.07.24"]
[Round "3.31"]
[White "Ret, Adam Josef"]
[Black "Hansch, Karsten"]
[Result "0-1"]
[ECO "D31"]
[WhiteElo "2023"]
[BlackElo "2320"]
[Annotator "TA"]
[PlyCount "60"]
[EventDate "2022.07.22"]
[EventType "swiss"]
[EventCountry "CZE"]
[SourceTitle "playchess.com"]
[Source "ChessBase"]
[SourceQuality "1"]
[TimeControl "40/5400+30:1800+30"]

{[%evp 9,60,0,-6,-31,0,-16,0,0,0,-6,-20,-24,-15,-21,0,-28,-25,-31,0,0,0,0,0,-83,-62,-54,-56,-42,-43,-61,-66,-66,-66,-73,-67,-114,-103,-107,-105,-150,-159,-147,-137,-250,-205,-241,-200,-215,-209,-213,-220,-432,-298]} 1. d4 d5 2. c4 e6 3. Nc3 c6 4. cxd5 exd5 5. Qc2 {[%emt 0:08:59]} Bd6 {[%emt 0:00:39]} 6. h3 {[%emt 0:08:44] D31: Queen's Gambit Declined: Semi-Slav without ...Nf6 (+ Marshall Gambit and Noteboom) and Exchange Variation lines without ...Nf6.} h6 {[%emt 0:00:51]} 7. Nf3 {[%emt 0:01:06]} Nf6 {[%emt 0:01:33]} 8. e3 {[%emt 0:00:07] The position is equal.} O-O {[%emt 0:00:11]} 9. Bd3 {[%emt 0:00:05]} Re8 {[%emt 0:00:10]} 10. O-O {[%emt 0:00:09]} Qe7 {[%emt 0:00:14]} 11. Nd2 {[%emt 0:04:41]} Nbd7 {[%emt 0:03:21][%cal Bb8d7,Bd7f8,Bf8e6,Be6g5][%mdl 32]} (11... Na6 $5 {[%cal Ra6b4]}) 12. a3 {[%emt 0:04:44]} Nf8 {[%emt 0:02:26] [#]} 13. b4 $146 {[%emt 0:00:48]} ({Predecessor:} 13. e4 Ne6 14. e5 Nxd4 15. exd6 Nxc2 16. dxe7 Nxa1 17. b4 Ne4 18. Ndxe4 dxe4 19. Bxe4 {½-½ (82) Alanic,X (2284)-Legky,N (2473) France 2008}) 13... a6 {[%emt 0:00:19][%cal Ba7a6,Ba6a5][%mdl 32]} 14. Bb2 {[%emt 0:01:48]} Ne6 {[%emt 0:01:25]} 15. Nf3 {[%emt 0:00:28]} Ng5 {[%emt 0:00:34] [#] And now ...Nxf3+ would win.} 16. Qe2 {[%emt 0:07:56]} (16. Ne5 $1 $11 {keeps the balance.}) 16... a5 {[%emt 0:09:57]} 17. b5 {[%emt 0:03:05][%cal Of3e5]} Nfe4 {[%emt 0:00:29][%cal Og5h3] Hoping for ...Nxh3+!} 18. Nxg5 {[%emt 0:09:12]} Qxg5 {[%emt 0:02:04]} 19. Bxe4 {[%emt 0:03:54]} dxe4 {[%emt 0:01:30]} 20. f4 {[%emt 0:03:52]} exf3 {[%emt 0:00:25]} 21. Rxf3 {[%emt 0:00:18]} c5 {[%emt 0:02:50] aiming for ...cxd4.} 22. d5 (22. Qd3 $15) 22... Bf5 {[%cal Bc8f5,Bf5g6,Bg6e4][%mdl 32]} 23. Raf1 {[%emt 0:13:06]} Bg6 {[%emt 0:00:50] Black is much more active. This bishop pair is nice.} 24. Qf2 Be5 {[%emt 0:03:46]} 25. Rd1 {[%emt 0:05:12]} Rad8 26. a4 {[%emt 0:02:52]} (26. e4 $17) 26... b6 {[%emt 0:02:58]} 27. Qd2 {[%emt 0:04:08]} Bxc3 {[%emt 0:05:29]} 28. Qxc3 {[%emt 0:00:38][%csl Gb2][%cal Rc3g7] [#]} Be4 {[%emt 0:00:04]} 29. Rf2 {[%emt 0:02:33]} ({Not} 29. h4 $2 Qg4 30. Kh2 Bxf3 $19) 29... Rxd5 {[%emt 0:03:27]} 30. Rdf1 {[%emt 0:01:51]} (30. Rxd5 Bxd5 31. Re2) 30... f6 {[%emt 0:03:13] Weighted Error Value: White=0.26 (precise) /Black=0.09 (flawless)} 0-1

[Event "Czech Open-GM 2022"]
[Site "Pardubice"]
[Date "2022.07.24"]
[Round "3.32"]
[White "Levitan, Caleb Levi"]
[Black "Frank, Adam"]
[Result "0-1"]
[ECO "A45"]
[WhiteElo "1826"]
[BlackElo "2313"]
[Annotator "TA"]
[PlyCount "178"]
[EventDate "2022.07.22"]
[EventType "swiss"]
[EventCountry "CZE"]
[SourceTitle "playchess.com"]
[Source "ChessBase"]
[SourceQuality "1"]
[TimeControl "40/5400+30:1800+30"]

{[%evp 9,178,-4,0,-8,0,3,21,7,11,13,14,9,18,16,12,19,30,23,30,27,83,73,127,82,116,114,114,125,93,87,94,82,82,0,0,0,0,-3,0,-9,0,-11,-8,-29,-29,-22,-27,-186,-179,-220,-191,-211,-67,-141,-162,-870,-151,-162,-173,-159,-156,-139,-99,-103,-94,-90,-92,-91,-97,-143,-97,-127,-99,-235,-220,-387,-422,-466,-447,-478,-477,-468,-355,-464,-456,-455,-427,-392,-278,-283,-283,-275,-270,-592,-231,-225,-109,-120,-114,-213,-8,-44,-9,-9,0,0,-8,-8,-8,-8,0,0,0,-297,-291,-284,-275,-269,0,-12799,-262,-231,0,0,0,0,0,0,0,0,0,0,0,0,0,0,0,0,0,0,0,-1502,0,-1529,-260,-426,-1166,-346,-25,-29968,-29957,-29975,-29970,-29960,-12832,-29985,-29986,-29993,-29986,-29986,0,-29993,-29994,-29995,-29996,-29996,-29997,-29997,-29998,-29998,-29999]} 1. d4 Nf6 2. Bf4 g6 3. Nc3 d5 4. e3 c6 5. h4 Bg7 {[%emt 0:06:06]} 6. Be2 {[%emt 0:02:45] A45: Trompowsky Attack.} h6 {[%emt 0:01:44]} 7. Nf3 {[%emt 0:02:29]} Qb6 {[%emt 0:00:53] [#]} 8. Na4 $146 {[%emt 0:01:54] The position is equal.} ({Predecessor:} 8. a3 Bf5 9. Qd2 Nbd7 10. O-O-O Ng4 11. Qe1 O-O 12. Nh2 Nxh2 13. Bxh2 e5 14. g4 {1-0 (41) Bukal,V (2390)-Rubil,M (2269) Mali Losinj 2019}) 8... Qa5+ {[%emt 0:00:44]} 9. c3 {[%emt 0:00:08]} Nbd7 {[%emt 0:00:04]} 10. b4 {[%emt 0:01:26]} Qd8 {[%emt 0:00:04]} 11. Nc5 {[%emt 0:01:33]} Nxc5 {[%emt 0:21:52]} 12. bxc5 {[%emt 0:00:21]} Ne4 {[%emt 0:00:04]} 13. Rc1 {[%emt 0:01:59]} Qa5 {[%emt 0:01:04][%csl LRa2,LRc3]} 14. Qc2 {[%emt 0:00:47]} b6 {[%emt 0:00:18]} (14... Bf5 $11 {keeps the balance.} 15. Bd3 e6) 15. Ne5 $16 {[%emt 0:04:50]} Bd7 {[%emt 0:12:23]} (15... Bxe5 $142 16. Bxe5 O-O) 16. Bd3 {[%emt 0:04:58]} bxc5 {[%emt 0:23:29]} 17. Bxe4 {[%emt 0:09:13]} dxe4 {[%emt 0:00:04]} 18. Nxd7 {[%emt 0:01:12]} (18. Qxe4 Qxa2 19. Nxd7 (19. dxc5 Qe6 $11) 19... Kxd7 $14) 18... Kxd7 {[%emt 0:00:06]} 19. O-O $1 {[%emt 0:01:34]} (19. Qxe4 Qxa2 20. Rb1 (20. dxc5 Qe6 $11) 20... Qe6 21. Rb7+ Ke8 $14) 19... Rhc8 {[%emt 0:07:41]} (19... g5 20. Bg3 (20. hxg5 hxg5 21. Bh2 c4 $14)) 20. Rb1 {[%emt 0:04:59]} (20. Qxe4 {with more complications.} cxd4 21. cxd4 Qxa2 22. Rc5) 20... Ke8 {[%emt 0:04:03][%cal Bd7e8,Be8f8,Bf8g7][%mdl 32]} 21. Rb2 {[%emt 0:10:11]} (21. Qxe4 $16 {Strongly threatening Rb7.} Qxa2 22. Bd6 (22. dxc5 Qd5 $15) (22. Rb7 Qe6 $14)) 21... cxd4 $1 $11 {[%emt 0:01:55]} 22. cxd4 {[%emt 0:01:00]} Qf5 $1 {[%emt 0:02:48]} 23. Qa4 {[%emt 0:03:25]} (23. Rb7 {looks sharper.} c5 24. dxc5 Rxc5 25. Qa4+) 23... Kf8 {[%emt 0:01:03]} 24. Rb7 {[%emt 0:03:01]} g5 {[%emt 0:03:44]} 25. hxg5 {[%emt 0:02:08]} hxg5 {[%emt 0:00:03]} 26. Bg3 {[%emt 0:00:10]} Bf6 {[%emt 0:01:09]} 27. Rc1 {[%emt 0:00:52]} Kg7 {[%emt 0:00:52]} 28. Rxc6 $2 {[%emt 0:16:25]} (28. Qc2 $11) 28... Rh8 $19 {[%emt 0:02:58]} 29. Kf1 {[%emt 0:00:58]} Rh1+ {[%emt 0:03:34]} 30. Ke2 {[%emt 0:01:27]} Ra1 {[%emt 0:00:03]} (30... Rg1 $19 31. Kd2 Rxg2) 31. Qc2 {[%emt 0:03:20]} (31. Kd2 $15) 31... Qa5 $17 {[%emt 0:01:02][%csl Ga5][%cal Ra1e1]} 32. Qd2 {[%emt 0:05:03] Prevents Re1+.} (32. Rb1 Rxa2 33. Rb2 Rxb2 34. Qxb2) 32... Rxa2 $2 {[%emt 0:00:23]} (32... Qa4 $19 33. Rbc7 Rxa2) 33. Rb2 {[%emt 0:00:09]} Rxb2 $40 {[%emt 0:00:03][%mdl 128] White is in trouble.} 34. Qxb2 {[%emt 0:00:03]} Rh8 $1 {[%emt 0:00:14]} 35. Qb1 {[%emt 0:02:24] [#] Prevents Rh1.} Rh1 $3 {[%emt 0:04:11][%mdl 512]} 36. Qxh1 {[%emt 0:00:52]} Qb5+ {[%emt 0:00:02]} 37. Kd2 {[%emt 0:00:10]} Qxc6 {[%emt 0:00:04][%mdl 4096] Endgame KQB-KQB} 38. Qa1 {[%emt 0:01:02]} Qb6 {[%emt 0:01:05]} 39. Qa4 {[%emt 0:02:46]} (39. Qc3 $142) 39... e6 {[%emt 0:00:34]} (39... a5 $142 40. Kc3 Qb1) 40. Qc2 {[%emt 0:00:48]} Qb4+ {[%emt 0:00:48]} 41. Ke2 {[%emt 0:30:08]} (41. Kc1 $17) 41... a5 $1 $19 {[%emt 0:13:25]} 42. Qxe4 $2 {[%emt 0:00:00]} (42. Qc5 Qb2+ 43. Ke1) 42... a4 {[%emt 0:00:04]} 43. Qc2 {[%emt 0:00:00]} a3 {[%emt 0:00:32] Hoping for ...Qb5+.} 44. Kd1 {[%emt 0:00:00]} Be7 {[%emt 0:02:43]} 45. f3 {[%emt 0:00:00]} Qa5 {[%emt 0:00:18] And now ...a2 would win.} (45... Qb2 46. Qxb2 axb2 47. Kc2 $16) 46. Qa2 {[%emt 0:00:00]} Qa4+ {[%emt 0:00:04]} 47. Kc1 {[%emt 0:00:00]} Qa6 {[%emt 0:00:34]} 48. Be1 {[%emt 0:00:00]} Qd3 {[%emt 0:00:38]} 49. Qd2 {[%emt 0:00:00]} Qf1 {[%emt 0:04:32]} 50. Kb1 {[%emt 0:00:00]} g4 $1 {[%emt 0:02:07]} 51. Qf2 {[%emt 0:00:00] Prevents Bh4.} (51. Ka2 {was the crucial defense.}) 51... Qd3+ $2 {[%emt 0:00:13]} (51... Qb5+ 52. Ka2 Bh4 $1 {[%mdl 512]}) 52. Ka1 {[%emt 0:00:00]} Qb3 {[%emt 0:02:29]} (52... a2 53. Kxa2 Qa3+ 54. Kb1 $15) (52... Qc4 $19 {[%cal Oe7h4] is more deadly. Threatens to win with ...Bh4!} 53. Qd2 Bg5 54. fxg4 Qb5) 53. Qd2 $17 {[%emt 0:00:00]} Bg5 {[%emt 0:03:58] Black is much more active.} 54. f4 {[%emt 0:00:00]} (54. Qc3 $17 Qd1+ 55. Ka2) 54... a2 $2 {[%emt 0:01:40]} 55. Qc1 {[%emt 0:06:40]} (55. Qb4 $5 {[%cal Rb4b3]} Qd1+ 56. Kxa2 Qc2+ 57. Ka1 Qc1+ 58. Ka2 Qc2+ 59. Ka1 Qc1+ 60. Ka2 Qc2+ $15) 55... Be7 {[%emt 0:00:45]} 56. Bc3 {[%emt 0:00:06]} Ba3 {[%emt 0:02:34]} 57. Bb2 {[%emt 0:00:08]} Bxb2+ {[%emt 0:01:15]} 58. Qxb2 {[%emt 0:00:02]} Qxe3 $11 {[%emt 0:00:10] KQ-KQ} 59. d5+ $1 {[%emt 0:00:54]} Kg6 {[%emt 0:01:34]} 60. Qc2+ $1 {[%emt 0:01:22]} f5 {[%emt 0:01:34]} 61. Kxa2 $2 {[%emt 0:10:56][%mdl 8192]} (61. Qc6 $1 $11) 61... Qa7+ {[%emt 0:01:08]} (61... exd5 62. Qc6+ Kg7 63. g3 $11) 62. Kb2 {[%emt 0:00:17]} Qd4+ {[%emt 0:00:03]} 63. Qc3 {[%emt 0:01:14]} Qb6+ $2 {[%emt 0:00:52]} (63... Qxf4 64. dxe6 Qf2+ 65. Qc2 Qxc2+ 66. Kxc2 $11) (63... Qxd5 64. g3 $17) (63... Qf2+ $19 64. Qc2 Qxf4 65. dxe6 Qe5+ 66. Kc1 Qe1+ 67. Qd1 Qxe6) 64. Qb3 $2 {[%emt 0:00:57][%mdl 8192]} (64. Kc2 $11) 64... Qf2+ $2 {[%emt 0:00:32]} (64... Qxb3+ 65. Kxb3 e5 66. fxe5 f4) 65. Ka3 $19 {[%emt 0:00:26]} Qc5+ $2 {[%emt 0:00:09]} ({Stronger than} 65... Qxg2 66. d6 Qa8+ 67. Kb2 Qh8+ 68. Kc1 Qh1+ 69. Kb2 Qg2+ 70. Ka3 Qa8+ 71. Kb2 Qg2+ 72. Ka3) ({Black should play} 65... Qxf4 $19 66. dxe6 Qd6+ 67. Kb2 Qd2+ 68. Qc2 Qb4+ 69. Ka2 Kf6) 66. Kb2 $1 $11 {[%emt 0:00:14]} exd5 {[%emt 0:00:08]} 67. g3 {[%emt 0:00:23]} Qf2+ {[%emt 0:00:18]} 68. Kb1 {[%emt 0:00:13]} Qe1+ {[%emt 0:00:26]} 69. Kb2 {[%emt 0:00:23]} Qf2+ {[%emt 0:00:38]} 70. Kb1 {[%emt 0:00:11]} Qc5 {[%emt 0:01:10]} 71. Kb2 {[%emt 0:00:59]} Kf6 {[%emt 0:00:25]} 72. Qb8 {[%emt 0:01:07]} d4 {[%emt 0:00:26]} ({Don't play} 72... Qf2+ $6 73. Kb1 $17) 73. Qh8+ {[%emt 0:00:13]} Ke6 {[%emt 0:00:03] aiming for ...Kd5.} 74. Qg8+ {[%emt 0:00:41]} Kd6 {[%emt 0:00:08] ...Kc6 is the strong threat.} 75. Qf8+ $2 {[%emt 0:01:07][%mdl 8192] [#] White is now going downhill.} (75. Kb1 $11) 75... Kc6 $1 $19 {[%emt 0:00:03]} 76. Qc8+ $2 {[%emt 0:00:13][%mdl 8192]} (76. Qa8+ $11 Kb5 77. Qb8+ Ka5 78. Qg8) 76... Kb5 {[%emt 0:00:05]} 77. Qb7+ {[%emt 0:00:15]} Ka5 {[%emt 0:00:46]} 78. Qa8+ {[%emt 0:00:31] [#]} Kb4 $1 {[%emt 0:00:11] ( -> ...Qc3+)} 79. Qb7+ $2 {[%emt 0:02:32][%mdl 8192]} (79. Qb8+ $11 Qb5 80. Qd6+ Kc4+ 81. Kc1) 79... Qb5 {[%emt 0:00:04]} 80. Qg2 {[%emt 0:00:58]} Kc4+ {[%emt 0:00:21]} 81. Kc1 {[%emt 0:00:05]} d3 {[%emt 0:00:28]} (81... Qa5 $142 82. Kb2 d3 83. Qc6+ Kd4 84. Qd6+ Ke3 85. Kb3 Qd2 86. Qc6 Kf2 87. Qc5+ Kf3 88. Qxf5 Qc2+ 89. Kb4 Kxg3 90. Qg6 Qe2 91. Qh7 d2 92. Qg7 d1=Q 93. Qc3+ Qf3 94. Qc4 Qd6+ 95. Qc5 Qe4+ 96. Kb3 Qxc5 97. Kb2 Qec2+ 98. Ka1 Qg1#) 82. Qh1 {[%emt 0:01:18]} Qa4 {[%emt 0:01:33][%csl Gd3][%cal Ra4c2]} 83. Kb1 {[%emt 0:00:16]} Qb3+ {[%emt 0:00:42]} 84. Ka1 {[%emt 0:00:05]} Qa4+ {[%emt 0:01:03]} 85. Kb1 $1 {[%emt 0:00:21]} d2 {[%emt 0:01:21] Against Qc1+. Black mates.} 86. Qf1+ {[%emt 0:00:05]} Kc3 {[%emt 0:00:14]} 87. Qd3+ {[%emt 0:01:44]} Kxd3 {[%emt 0:00:05]} 88. Kb2 {[%emt 0:00:04]} Qb4+ {[%emt 0:00:06]} 89. Ka2 {[%emt 0:00:04]} Kc2 {[%emt 0:00:04] Weighted Error Value: White=0.46/Black=0.41} 0-1

[Event "Czech Open-GM 2022"]
[Site "Pardubice"]
[Date "2022.07.24"]
[Round "3.33"]
[White "Kistrup, Nicolai"]
[Black "Jirousek, Jan"]
[Result "0-1"]
[ECO "E06"]
[WhiteElo "2310"]
[BlackElo "2094"]
[Annotator "TA"]
[PlyCount "102"]
[EventDate "2022.07.22"]
[EventType "swiss"]
[EventCountry "CZE"]
[SourceTitle "playchess.com"]
[Source "ChessBase"]
[SourceQuality "1"]
[TimeControl "40/5400+30:1800+30"]

{[%evp 11,102,-4,26,1,0,0,18,18,28,18,29,22,32,11,14,27,22,8,19,16,10,6,18,15,24,13,36,16,75,75,88,89,90,91,77,26,25,14,7,25,19,50,41,30,65,56,52,58,488,119,113,116,108,107,276,249,237,-130,-98,-154,-160,-387,-362,-337,-344,-579,-574,-513,-356,-482,-301,-277,-227,-584,-584,-766,-766,-823,-585,-569,-555,-710,-703,-703,-703,-701,-701,-701,-701,-680,-680,-701,-701]} 1. d4 {[%emt 0:00:02]} d5 {[%emt 0:00:13]} 2. c4 {[%emt 0:00:04]} e6 {[%emt 0:00:04]} 3. Nf3 {[%emt 0:00:10]} Nf6 {[%emt 0:00:10]} 4. g3 {[%emt 0:00:19]} Be7 {[%emt 0:00:21]} 5. Bg2 {[%emt 0:00:08]} O-O {[%emt 0:00:09]} 6. Nc3 {[%emt 0:00:04]} c6 {[%emt 0:00:31]} 7. Qd3 {[%emt 0:00:24] E06: Closed Catalan: Early deviations.} b6 {[%emt 0:00:38]} 8. b3 {[%emt 0:15:53]} Bb7 {[%emt 0:01:12]} 9. O-O {[%emt 0:03:24] The position is equal.} Na6 {[%emt 0:01:16] [#]} 10. Rd1 $146 {[%emt 0:04:08]} ({Predecessor:} 10. Bb2 c5 11. cxd5 Nb4 12. Qd2 Nbxd5 13. Nxd5 Bxd5 14. Rfd1 Rc8 15. Rac1 Qe8 16. dxc5 {1-0 (51) Sargsyan,S (2486)-Tsydypov,Z (2545) Chess.com INT 2019}) 10... c5 {[%emt 0:08:21]} 11. cxd5 {[%emt 0:07:04]} Nxd5 {[%emt 0:03:24]} 12. Bb2 {[%emt 0:11:05]} cxd4 {[%emt 0:11:02]} 13. Qxd4 {[%emt 0:18:25] Nxd5 is the strong threat.} Bf6 {[%emt 0:02:08]} 14. Ne5 {[%emt 0:02:31]} Nxc3 {[%emt 0:10:39]} 15. Qxc3 {[%emt 0:02:15]} Qe7 {[%emt 0:02:02]} 16. Qe3 {[%emt 0:05:01] aiming for Rd7.} Bxg2 {[%emt 0:10:16]} 17. Kxg2 {[%emt 0:15:35]} Rfd8 {[%emt 0:03:13] Prevents Rd7.} 18. Qf3 {[%emt 0:03:41]} Bxe5 {[%emt 0:10:14]} 19. Bxe5 {[%emt 0:00:16][%cal Oe5d6]} f6 {[%emt 0:00:55] [#]} (19... Rac8 $11) 20. Bd6 $1 $16 {[%emt 0:01:12]} Qf7 {[%emt 0:04:12]} 21. Rac1 {[%emt 0:02:48]} Rac8 {[%emt 0:02:57]} 22. Ba3 {[%emt 0:00:22]} h6 {[%emt 0:09:33]} 23. Qe4 {[%emt 0:01:19]} (23. Rxc8 $16 Rxc8 24. Rd6) 23... Nc7 $11 {[%emt 0:06:50][%cal Ba6c7,Bc7d5,Bd5b4][%mdl 32]} 24. Qc6 {[%emt 0:05:36] And now Rxd8+ would win.} Nd5 {[%emt 0:06:12]} 25. Qxc8 {[%emt 0:00:39]} Rxc8 {[%emt 0:00:02]} 26. Rxc8+ {[%emt 0:00:06]} Kh7 {[%emt 0:00:10] Threatens to win with ...Qb7.} 27. e4 {[%emt 0:00:29]} (27. Kg1 $5 {[%cal Re2e4]}) 27... Qh5 {[%emt 0:03:00]} 28. Rd2 $36 {[%emt 0:00:59][%mdl 2048] White has the initiative.} (28. exd5 Qxd1 29. d6 Qd5+ 30. Kg1 Qb7 $11) 28... Qg5 {[%emt 0:00:56]} 29. Bc1 {[%emt 0:00:22]} ({Stronger than} 29. exd5 Qxd2 30. d6 e5 $17) 29... Nb4 {[%emt 0:02:32][%mdl 8192]} (29... Nf4+ $1 $14 30. Kf1 Ng6) 30. Rc7 $2 {[%emt 0:00:38]} (30. Rd4 $18 {is the precise move to win.} Qa5 31. Bd2) 30... Qe5 $16 {[%emt 0:00:54][%csl LRc7,LRe4]} 31. Rc4 {[%emt 0:00:21]} ({Of course not} 31. Rxa7 $6 Qxe4+ 32. f3 Qe1 $11) 31... Na6 {[%emt 0:01:00]} 32. f3 {[%emt 0:00:31]} b5 $2 {[%emt 0:00:37]} (32... h5 $16 33. Bb2 Qb5) 33. Bb2 $18 {[%emt 0:00:26]} Qg5 {[%emt 0:00:27] [#]} 34. f4 $2 {[%emt 0:00:08]} (34. Rcc2 $1 $18) 34... Qg6 $17 {[%emt 0:00:21][%mdl 1024] Black has strong compensation.} 35. Rcd4 {[%emt 0:00:09]} (35. Rc1 $142) 35... e5 {[%emt 0:00:44]} 36. f5 $2 {[%emt 0:00:15]} (36. fxe5 $17 {is the only way for White.} fxe5 37. Rd5 Qxe4+ 38. Kf2) 36... Qg4 {[%emt 0:00:30]} 37. h3 {[%emt 0:00:14]} Qg5 {[%emt 0:00:01]} 38. Rd5 {[%emt 0:00:59]} (38. R4d3 {was worth a try.} Nc5 39. Ba3 (39. h4 $2 Qg4 $19) 39... Nxe4 40. Re2 Qxf5 41. Rde3) 38... Qe3 $19 {[%emt 0:00:25]} 39. Kh2 {[%emt 0:01:17]} Qxe4 {[%emt 0:00:56]} 40. Rxb5 {[%emt 0:00:38]} Qxf5 {[%emt 0:00:46] Hoping for ...Nc7.} 41. Rg2 {[%emt 0:21:58]} Nc7 {[%emt 0:05:34]} 42. Rc5 {[%emt 0:01:40]} (42. Ra5 {was the crucial defense.}) 42... Ne6 {[%emt 0:00:36] Black is clearly winning.} 43. Rc4 {[%emt 0:02:04]} Ng5 {[%emt 0:02:22] ( -> ...Nf3+)} 44. g4 {[%emt 0:02:30]} Qf3 {[%emt 0:03:36]} 45. Rc3 {[%emt 0:01:30]} Qf4+ {[%emt 0:01:11]} 46. Kh1 {[%emt 0:00:34]} Ne4 {[%emt 0:05:09]} 47. Rcc2 {[%emt 0:00:50]} Ng3+ {[%emt 0:02:48]} 48. Kg1 {[%emt 0:01:39]} Qe3+ {[%emt 0:01:12]} 49. Rgf2 {[%emt 0:01:08]} Ne4 {[%emt 0:02:59][%csl LRf2,LRh3]} 50. Rce2 {[%emt 0:00:11]} Qd3 {[%emt 0:00:29]} 51. Rg2 {[%emt 0:01:11]} Ng5 {[%emt 0:00:57] Weighted Error Value: White=0.67/Black=0.39} 0-1